fUST/lending_fUST_20250801
["ID","MTS","AMOUNT","RATE_DAILY","PERIOD"]
[376488994,1753995043504,-2894.25,0.00019178,2]
[376488996,1753995043513,-560.62521777,0.00019178,2]
[376488998,1753995043523,-460.0,0.00019178,2]
[376489000,1753995043533,-460.0,0.00019178,2]
[376489002,1753995043545,-595.83,0.00019178,2]
[376489004,1753995043555,-460.0,0.00019178,2]
[376489006,1753995043564,-2276.82,0.00019178,2]
[376489008,1753995043574,-460.0,0.00019178,2]
[376489010,1753995043583,-460.0,0.00019178,2]
[376489012,1753995043592,-2004.29,0.00019178,2]
[376489014,1753995043602,-460.0,0.00019178,2]
[376489016,1753995043611,-460.0,0.00019178,2]
[376489018,1753995043622,-460.0,0.00019178,2]
[376489020,1753995043631,-461.2900649,0.00019178,2]
[376489022,1753995043640,-460.0,0.00019178,2]
[376489023,1753995043649,-460.0,0.00019178,2]
[376489025,1753995043659,-460.0,0.00019178,2]
[376489028,1753995043668,-460.0,0.00019178,2]
[376489030,1753995043679,-215.13674408,0.00019178,2]
[376489033,1753995043689,-464.58479247,0.00019178,2]
[376489036,1753995043699,-460.0,0.00019178,2]
[376489038,1753995043709,-392.2186053,0.00019178,2]
[376489041,1753995043717,-460.0,0.00019178,2]
[376489043,1753995043727,-463.57,0.00019178,2]
[376489046,1753995043736,-504.49850394,0.00019178,2]
[376489049,1753995043746,-460.0,0.00019178,2]
[376489052,1753995043755,-460.0,0.00019178,2]
[376489055,1753995043765,-460.0,0.00019178,2]
[376489057,1753995043774,-460.0,0.00019178,2]
[376489059,1753995043784,-460.0,0.00019178,2]
[376489061,1753995043793,-460.0,0.00019178,2]
[376489063,1753995043802,-460.0,0.00019178,2]
[376489065,1753995043812,-460.0,0.00019178,2]
[376489067,1753995043821,-460.0,0.00019178,2]
[376489069,1753995043831,-460.0,0.00019178,2]
[376489071,1753995043841,-460.0,0.00019178,2]
[376489073,1753995043850,-489.34,0.00019178,2]
[376489075,1753995043859,-1128.7,0.00019178,2]
[376489077,1753995043869,-460.0,0.00019178,2]
[376489079,1753995043878,-441.67453405,0.00019178,2]
[376489082,1753995043888,-460.0,0.00019178,2]
[376489085,1753995043897,-460.0,0.00019178,2]
[376489087,1753995043907,-2123.8,0.00019178,2]
[376489089,1753995043916,-460.0,0.00019178,2]
[376489091,1753995043925,-460.0,0.00019178,2]
[376489093,1753995043934,-460.0,0.00019178,2]
[376489095,1753995043945,-460.0,0.00019178,2]
[376489097,1753995043954,-460.0,0.00019178,2]
[376489099,1753995043964,-460.0,0.00019178,2]
[376489101,1753995043974,-460.0,0.00019178,2]
[376489103,1753995043983,-460.0,0.00019178,2]
[376489105,1753995043992,-587.47,0.00019178,2]
[376489107,1753995044001,-460.44561099,0.00019178,2]
[376489109,1753995044011,-460.0,0.00019178,2]
[376489111,1753995044021,-460.0,0.00019178,2]
[376489113,1753995044030,-460.0,0.00019178,2]
[376489115,1753995044039,-460.0,0.00019178,2]
[376489117,1753995044048,-460.0,0.00019178,2]
[376489119,1753995044057,-460.88767005,0.00019178,2]
[376489121,1753995044066,-460.0,0.00019178,2]
[376489123,1753995044075,-471.50099693,0.00019178,2]
[376489126,1753995044084,-463.49149147,0.00019178,2]
[376489128,1753995044093,-460.0,0.00019178,2]
[376489130,1753995044103,-469.82734788,0.00019178,2]
[376489132,1753995044112,-492.5,0.00019178,2]
[376489134,1753995044121,-741.22,0.00019178,2]
[376489136,1753995044130,-2198.77,0.00019178,2]
[376489138,1753995044140,-460.0,0.00019178,2]
[376489140,1753995044149,-640.53,0.00019178,2]
[376489142,1753995044158,-460.0,0.00019178,2]
[376489144,1753995044167,-460.0,0.00019178,2]
[376489146,1753995044176,-460.0,0.00019178,2]
[376489148,1753995044185,-460.9182848,0.00019178,2]
[376489150,1753995044195,-342.61485273,0.00019178,2]
[376489151,1753995044204,-460.0,0.00019178,2]
[376489152,1753995044214,-460.0,0.00019178,2]
[376489153,1753995044224,-460.0,0.00019178,2]
[376489154,1753995044233,-762.27,0.00019178,2]
[376489155,1753995044242,-460.0,0.00019178,2]
[376489156,1753995044252,-694.17,0.00019178,2]
[376489158,1753995044260,-460.0,0.00019178,2]
[376489160,1753995044270,-460.0,0.00019178,2]
[376489162,1753995044278,-460.0,0.00019178,2]
[376489164,1753995044287,-460.0,0.00019178,2]
[376489166,1753995044296,-460.0,0.00019178,2]
[376489168,1753995044305,-460.0,0.00019178,2]
[376489170,1753995044314,-460.0,0.00019178,2]
[376489172,1753995044323,-460.0,0.00019178,2]
[376489174,1753995044333,-460.0,0.00019178,2]
[376489176,1753995044341,-460.0,0.00019178,2]
[376489178,1753995044350,-460.0,0.00019178,2]
[376489180,1753995044359,-460.0,0.00019178,2]
[376489182,1753995044368,-1831.59,0.00019178,2]
[376489184,1753995044377,-460.0,0.00019178,2]
[376489186,1753995044387,-460.0,0.00019178,2]
[376489188,1753995044396,-460.0,0.00019178,2]
[376489190,1753995044404,-460.0,0.00019178,2]
[376489192,1753995044413,-460.0,0.00019178,2]
[376489194,1753995044422,-721.58,0.00019178,2]
[376489196,1753995044432,-460.0,0.00019178,2]
[376489198,1753995044441,-500.0,0.00019178,2]
[376489200,1753995044450,-460.0,0.00019178,2]
[376489202,1753995044460,-460.0,0.00019178,2]
[376489204,1753995044468,-932.13,0.00019178,2]
[376489206,1753995044477,-460.0,0.00019178,2]
[376489208,1753995044487,-460.0,0.00019178,2]
[376489210,1753995044496,-460.0,0.00019178,2]
[376489212,1753995044505,-701.76,0.00019178,2]
[376489214,1753995044514,-920.61,0.00019178,2]
[376489216,1753995044523,-460.0,0.00019178,2]
[376489218,1753995044535,-818.49,0.00019178,2]
[376489220,1753995044544,-460.0,0.00019178,2]
[376489222,1753995044553,-263.39174268,0.00019178,2]
[376489224,1753995044562,-460.0,0.00019178,2]
[376489226,1753995044571,-153.04609921,0.00019178,2]
[376489228,1753995044580,-460.0,0.00019178,2]
[376489230,1753995044589,-1109.77,0.00019178,2]
[376489233,1753995044599,-627.24,0.00019178,2]
[376489236,1753995044609,-460.0,0.00019178,2]
[376489239,1753995044618,-460.0,0.00019178,2]
[376489241,1753995044627,-460.0,0.00019178,2]
[376489243,1753995044637,-460.0,0.00019178,2]
[376489245,1753995044646,-460.0,0.00019178,2]
[376489247,1753995044656,-241.02458018,0.00019178,2]
[376489251,1753995044665,-460.0,0.00019178,2]
[376489254,1753995044677,-460.0,0.00019178,2]
[376489256,1753995044687,-460.0,0.00019178,2]
[376489258,1753995044697,-3005.61,0.00019178,2]
[376489260,1753995044706,-528.15991161,0.00019178,2]
[376489262,1753995044715,-460.0,0.00019178,2]
[376489264,1753995044724,-460.0,0.00019178,2]
[376489266,1753995044734,-460.0,0.00019178,2]
[376489268,1753995044744,-460.0,0.00019178,2]
[376489270,1753995044753,-460.0,0.00019178,2]
[376489272,1753995044762,-460.0,0.00019178,2]
[376489274,1753995044772,-460.0,0.00019178,2]
[376489276,1753995044781,-7207.53,0.00019178,2]
[376489278,1753995044791,-460.0,0.00019178,2]
[376489280,1753995044800,-460.0,0.00019178,2]
[376489282,1753995044809,-460.0,0.00019178,2]
[376489284,1753995044818,-460.0,0.00019178,2]
[376489286,1753995044827,-460.0,0.00019178,2]
[376489288,1753995044837,-460.0,0.00019178,2]
[376489290,1753995044846,-460.0,0.00019178,2]
[376489292,1753995044855,-460.0,0.00019178,2]
[376489294,1753995044865,-730.31,0.00019178,2]
[376489296,1753995044874,-460.0,0.00019178,2]
[376489298,1753995044883,-460.0,0.00019178,2]
[376489300,1753995044892,-460.0,0.00019178,2]
[376489302,1753995044901,-460.0,0.00019178,2]
[376489304,1753995044910,-494.15987481,0.00019178,2]
[376489306,1753995044919,-460.0,0.00019178,2]
[376489308,1753995044928,-468.76961872,0.00019178,2]
[376489310,1753995044938,-184.766065,0.00019178,2]
[376489312,1753995044947,-208.68538681,0.00019187,2]
[376489314,1753995044956,-208.68538681,0.0001927,2]
[376489316,1753995044966,-500.0,0.00019351,2]
[376489318,1753995044975,-208.68538681,0.00019352,2]
[376489320,1753995044985,-200.0,0.00019359,15]
[376489322,1753995044994,-200.0,0.00019359,15]
[376489324,1753995045003,-200.0,0.00019359,15]
[376489326,1753995045013,-200.0,0.00019359,15]
[376489328,1753995045022,-200.0,0.00019359,15]
[376489330,1753995045031,-200.0,0.00019359,15]
[376489332,1753995045041,-200.0,0.00019359,15]
[376489334,1753995045051,-200.0,0.00019359,15]
[376489336,1753995045060,-524.70747316,0.0001945,2]
[376489356,1753995045227,-672.31252684,0.0001945,2]
[376489358,1753995045237,-500.0,0.0001945,2]
[376489360,1753995045246,-521.69,0.0001945,2]
[376489362,1753995045256,-1197.02,0.00019451,2]
[376489364,1753995045265,-1197.02,0.00019451,2]
[376489366,1753995045275,-521.69,0.00019451,2]
[376489369,1753995045284,-521.69,0.00019451,2]
[376489371,1753995045298,-1258.92064614,0.00019452,2]
[376489373,1753995045307,-460.0,0.00019452,2]
[376489375,1753995045316,-460.0,0.00019452,2]
[376489377,1753995045326,-460.0,0.00019452,2]
[376489379,1753995045335,-460.0,0.00019452,2]
[376489381,1753995045345,-460.0,0.00019452,2]
[376489383,1753995045354,-460.0,0.00019452,2]
[376489385,1753995045363,-230.30582454,0.00019452,2]
[376489387,1753995045372,-460.0,0.00019452,2]
[376489389,1753995045382,-460.0,0.00019452,2]
[376489392,1753995045391,-460.0,0.00019452,2]
[376489394,1753995045400,-460.0,0.00019452,2]
[376489396,1753995045413,-460.0,0.00019452,2]
[376489398,1753995045422,-600.1333014,0.00019452,2]
[376489400,1753995045431,-472.79331907,0.00019452,2]
[376489402,1753995045441,-460.0,0.00019452,2]
[376489404,1753995045450,-349.36129447,0.00019452,2]
[376489406,1753995045460,-460.0,0.00019452,2]
[376489408,1753995045469,-460.0,0.00019452,2]
[376489410,1753995045479,-460.0,0.00019452,2]
[376489412,1753995045489,-460.0,0.00019452,2]
[376489414,1753995045498,-460.0,0.00019452,2]
[376489416,1753995045508,-460.0,0.00019452,2]
[376489418,1753995045517,-460.0,0.00019452,2]
[376489420,1753995045526,-460.0,0.00019452,2]
[376489422,1753995045537,-460.0,0.00019452,2]
[376489424,1753995045551,-515.74,0.00019452,2]
[376489426,1753995045561,-460.0,0.00019452,2]
[376489428,1753995045570,-460.0,0.00019452,2]
[376489430,1753995045581,-569.44219641,0.00019452,2]
[376489432,1753995045591,-460.0,0.00019452,2]
[376489434,1753995045600,-460.0,0.00019452,2]
[376489436,1753995045610,-274.867477,0.00019452,2]
[376489438,1753995045620,-460.0,0.00019452,2]
[376489440,1753995045630,-460.0,0.00019452,2]
[376489442,1753995045639,-460.0,0.00019452,2]
[376489444,1753995045649,-460.0,0.00019452,2]
[376489446,1753995045658,-700.18,0.00019452,2]
[376489448,1753995045667,-460.0,0.00019452,2]
[376489450,1753995045677,-460.0,0.00019452,2]
[376489452,1753995045686,-460.0,0.00019452,2]
[376489454,1753995045696,-460.0,0.00019452,2]
[376489457,1753995045706,-259.60550748,0.00019452,2]
[376489459,1753995045715,-460.0,0.00019452,2]
[376489461,1753995045724,-460.0,0.00019452,2]
[376489463,1753995045734,-460.0,0.00019452,2]
[376489465,1753995045746,-460.0,0.00019452,2]
[376489467,1753995045756,-460.0,0.00019452,2]
[376489469,1753995045765,-460.0,0.00019452,2]
[376489471,1753995045774,-460.0,0.00019452,2]
[376489473,1753995045784,-460.0,0.00019452,2]
[376489475,1753995045793,-460.0,0.00019452,2]
[376489477,1753995045805,-460.0,0.00019452,2]
[376489479,1753995045815,-460.0,0.00019452,2]
[376489481,1753995045824,-480.35489582,0.00019452,2]
[376489483,1753995045834,-460.0,0.00019452,2]
[376489485,1753995045843,-460.0,0.00019452,2]
[376489487,1753995045853,-460.0,0.00019452,2]
[376489489,1753995045862,-460.0,0.00019452,2]
[376489491,1753995045871,-460.0,0.00019452,2]
[376489493,1753995045880,-460.0,0.00019452,2]
[376489495,1753995045889,-460.0,0.00019452,2]
[376489497,1753995045899,-460.0,0.00019452,2]
[376489499,1753995045908,-460.0,0.00019452,2]
[376489501,1753995045917,-460.0,0.00019452,2]
[376489503,1753995045926,-462.06,0.00019452,2]
[376489505,1753995045935,-460.0,0.00019452,2]
[376489507,1753995045944,-460.0,0.00019452,2]
[376489509,1753995045954,-460.0,0.00019452,2]
[376489511,1753995045963,-460.0,0.00019452,2]
[376489513,1753995045972,-460.0,0.00019452,2]
[376489515,1753995045981,-460.0,0.00019452,2]
[376489517,1753995045990,-460.0,0.00019452,2]
[376489519,1753995046000,-460.0,0.00019452,2]
[376489521,1753995046010,-460.0,0.00019452,2]
[376489523,1753995046019,-460.0,0.00019452,2]
[376489525,1753995046028,-460.0,0.00019452,2]
[376489527,1753995046037,-460.0,0.00019452,2]
[376489529,1753995046046,-460.0,0.00019452,2]
[376489531,1753995046056,-460.0,0.00019452,2]
[376489533,1753995046065,-460.0,0.00019452,2]
[376489535,1753995046074,-527.78,0.00019452,2]
[376489537,1753995046084,-460.0,0.00019452,2]
[376489539,1753995046093,-460.0,0.00019452,2]
[376489541,1753995046102,-267.97525475,0.00019452,2]
[376489543,1753995046111,-460.0,0.00019452,2]
[376489545,1753995046120,-460.0,0.00019452,2]
[376489547,1753995046129,-460.0,0.00019452,2]
[376489549,1753995046139,-1986.4,0.00019452,2]
[376489551,1753995046148,-460.0,0.00019452,2]
[376489553,1753995046157,-460.0,0.00019452,2]
[376489555,1753995046166,-460.0,0.00019452,2]
[376489557,1753995046175,-460.0,0.00019452,2]
[376489559,1753995046184,-468.88198816,0.00019452,2]
[376489561,1753995046193,-460.0,0.00019452,2]
[376489563,1753995046203,-460.0,0.00019452,2]
[376489565,1753995046212,-460.0,0.00019452,2]
[376489567,1753995046222,-460.0,0.00019452,2]
[376489569,1753995046231,-460.0,0.00019452,2]
[376489571,1753995046240,-460.0,0.00019452,2]
[376489573,1753995046249,-460.0,0.00019452,2]
[376489575,1753995046258,-460.0,0.00019452,2]
[376489577,1753995046268,-460.0,0.00019452,2]
[376489579,1753995046277,-460.0,0.00019452,2]
[376489581,1753995046286,-460.0,0.00019452,2]
[376489583,1753995046295,-500.63,0.00019452,2]
[376489585,1753995046304,-508.6,0.00019452,2]
[376489587,1753995046313,-460.0,0.00019452,2]
[376489589,1753995046323,-639.05,0.00019452,2]
[376489591,1753995046332,-620.2,0.00019452,2]
[376489593,1753995046341,-191.87171075,0.00019452,2]
[376489595,1753995046350,-460.0,0.00019452,2]
[376489597,1753995046360,-659.86,0.00019452,2]
[376489599,1753995046370,-460.0,0.00019452,2]
[376489601,1753995046379,-904.0,0.00019452,2]
[376489603,1753995046388,-640.02,0.00019452,2]
[376489605,1753995046397,-460.0,0.00019452,2]
[376489607,1753995046406,-4031.87,0.00019452,2]
[376489609,1753995046416,-499.8,0.00019452,2]
[376489611,1753995046425,-460.0,0.00019452,2]
[376489613,1753995046434,-460.0,0.00019452,2]
[376489615,1753995046443,-460.0,0.00019452,2]
[376489617,1753995046454,-460.0,0.00019452,2]
[376489619,1753995046464,-957.56,0.00019452,2]
[376489621,1753995046473,-460.0,0.00019452,2]
[376489623,1753995046482,-460.0,0.00019452,2]
[376489625,1753995046491,-460.0,0.00019452,2]
[376489627,1753995046500,-760.85,0.00019452,2]
[376489629,1753995046510,-460.0,0.00019452,2]
[376489631,1753995046519,-460.0,0.00019452,2]
[376489633,1753995046528,-792.01,0.00019452,2]
[376489636,1753995046539,-727.6,0.00019452,2]
[376489638,1753995046550,-626.8,0.00019452,2]
[376489640,1753995046559,-460.0,0.00019452,2]
[376489642,1753995046569,-1781.17,0.00019452,2]
[376489644,1753995046578,-2682.25,0.00019452,2]
[376489646,1753995046588,-460.0,0.00019452,2]
[376489648,1753995046597,-460.0,0.00019452,2]
[376489650,1753995046606,-532.13,0.00019452,2]
[376489651,1753995046616,-460.0,0.00019452,2]
[376489654,1753995046626,-1770.07,0.00019452,2]
[376489656,1753995046635,-465.68674025,0.00019452,2]
[376489658,1753995046645,-668.02,0.00019452,2]
[376489659,1753995046654,-838.67,0.00019452,2]
[376489661,1753995046664,-466.92753966,0.00019452,2]
[376489664,1753995046674,-1197.66,0.00019452,2]
[376489666,1753995046683,-460.0,0.00019452,2]
[376489668,1753995046692,-2894.25,0.00019452,2]
[376489670,1753995046703,-595.83,0.00019452,2]
[376489671,1753995046712,-460.0,0.00019452,2]
[376489674,1753995046721,-2276.82,0.00019452,2]
[376489675,1753995046730,-460.0,0.00019452,2]
[376489677,1753995046740,-2004.29,0.00019452,2]
[376489679,1753995046749,-460.0,0.00019452,2]
[376489682,1753995046758,-460.0,0.00019452,2]
[376489683,1753995046768,-460.0,0.00019452,2]
[376489685,1753995046777,-463.57,0.00019452,2]
[376489687,1753995046787,-460.0,0.00019452,2]
[376489690,1753995046797,-460.0,0.00019452,2]
[376489691,1753995046806,-460.0,0.00019452,2]
[376489693,1753995046815,-489.34,0.00019452,2]
[376489696,1753995046825,-1128.7,0.00019452,2]
[376489698,1753995046834,-460.0,0.00019452,2]
[376489700,1753995046843,-460.0,0.00019452,2]
[376489702,1753995046853,-460.0,0.00019452,2]
[376489703,1753995046863,-2123.8,0.00019452,2]
[376489705,1753995046872,-464.62650634,0.00019452,2]
[376489707,1753995046881,-460.0,0.00019452,2]
[376489710,1753995046891,-587.47,0.00019452,2]
[376489711,1753995046900,-467.64707366,0.00019452,2]
[376489714,1753995046910,-460.0,0.00019452,2]
[376489716,1753995046919,-460.0,0.00019452,2]
[376489717,1753995046928,-460.0,0.00019452,2]
[376489720,1753995046938,-492.5,0.00019452,2]
[376489721,1753995046948,-741.22,0.00019452,2]
[376489724,1753995046958,-2198.77,0.00019452,2]
[376489726,1753995046967,-460.0,0.00019452,2]
[376489728,1753995046977,-640.53,0.00019452,2]
[376489730,1753995046986,-460.0,0.00019452,2]
[376489732,1753995046995,-460.0,0.00019452,2]
[376489734,1753995047005,-460.0,0.00019452,2]
[376489736,1753995047014,-762.27,0.00019452,2]
[376489738,1753995047023,-694.17,0.00019452,2]
[376489740,1753995047032,-460.0,0.00019452,2]
[376489742,1753995047042,-1831.59,0.00019452,2]
[376489744,1753995047051,-460.0,0.00019452,2]
[376489745,1753995047060,-460.0,0.00019452,2]
[376489747,1753995047069,-721.58,0.00019452,2]
[376489749,1753995047079,-932.13,0.00019452,2]
[376489751,1753995047088,-460.0,0.00019452,2]
[376489753,1753995047097,-920.61,0.00019452,2]
[376489755,1753995047107,-701.76,0.00019452,2]
[376489757,1753995047115,-459.99381542,0.00019452,2]
[376489759,1753995047125,-818.49,0.00019452,2]
[376489761,1753995047134,-1109.77,0.00019452,2]
[376489763,1753995047143,-627.24,0.00019452,2]
[376489765,1753995047152,-460.0,0.00019452,2]
[376489767,1753995047161,-460.0,0.00019452,2]
[376489769,1753995047171,-460.0,0.00019452,2]
[376489771,1753995047180,-460.0,0.00019452,2]
[376489773,1753995047189,-460.0,0.00019452,2]
[376489775,1753995047199,-460.0,0.00019452,2]
[376489777,1753995047208,-3005.61,0.00019452,2]
[376489779,1753995047217,-232.64254641,0.00019452,2]
[376489781,1753995047226,-460.0,0.00019452,2]
[376489783,1753995047235,-460.0,0.00019452,2]
[376489785,1753995047245,-460.0,0.00019452,2]
[376489787,1753995047254,-460.0,0.00019452,2]
[376489789,1753995047264,-7207.53,0.00019452,2]
[376489791,1753995047273,-460.0,0.00019452,2]
[376489793,1753995047282,-460.0,0.00019452,2]
[376489795,1753995047292,-460.0,0.00019452,2]
[376489797,1753995047301,-730.31,0.00019452,2]
[376489799,1753995047310,-460.0,0.00019452,2]
[376489801,1753995047319,-460.0,0.00019452,2]
[376489803,1753995047329,-700.0,0.00019455,2]
[376489805,1753995047338,-635.36,0.000195,2]
[376489807,1753995047348,-1000.0,0.00019721,2]
[376489809,1753995047357,-1000.0,0.00019721,2]
[376489811,1753995047366,-1197.02,0.00019725,2]
[376489813,1753995047375,-1197.02,0.00019725,2]
[376489815,1753995047385,-521.69,0.00019725,2]
[376489817,1753995047394,-521.69,0.00019725,2]
[376489819,1753995047403,-460.0,0.00019726,2]
[376489821,1753995047413,-460.0,0.00019726,2]
[376489823,1753995047422,-460.0,0.00019726,2]
[376489825,1753995047431,-460.0,0.00019726,2]
[376489827,1753995047440,-460.0,0.00019726,2]
[376489829,1753995047450,-460.0,0.00019726,2]
[376489831,1753995047459,-460.0,0.00019726,2]
[376489833,1753995047469,-271.75426985,0.00019726,2]
[376489835,1753995047478,-460.0,0.00019726,2]
[376489837,1753995047488,-460.0,0.00019726,2]
[376489839,1753995047497,-460.0,0.00019726,2]
[376489841,1753995047506,-460.0,0.00019726,2]
[376489843,1753995047515,-460.0,0.00019726,2]
[376489845,1753995047524,-460.0,0.00019726,2]
[376489847,1753995047537,-460.0,0.00019726,2]
[376489849,1753995047547,-515.74,0.00019726,2]
[376489851,1753995047556,-460.0,0.00019726,2]
[376489853,1753995047565,-460.0,0.00019726,2]
[376489855,1753995047574,-460.0,0.00019726,2]
[376489856,1753995047585,-460.0,0.00019726,2]
[376489858,1753995047594,-460.0,0.00019726,2]
[376489860,1753995047603,-700.18,0.00019726,2]
[376489862,1753995047612,-460.0,0.00019726,2]
[376489864,1753995047623,-460.0,0.00019726,2]
[376489866,1753995047632,-460.0,0.00019726,2]
[376489868,1753995047641,-460.0,0.00019726,2]
[376489870,1753995047650,-460.0,0.00019726,2]
[376489872,1753995047660,-460.0,0.00019726,2]
[376489874,1753995047669,-460.0,0.00019726,2]
[376489876,1753995047678,-460.0,0.00019726,2]
[376489878,1753995047687,-460.0,0.00019726,2]
[376489880,1753995047696,-460.0,0.00019726,2]
[376489882,1753995047705,-460.0,0.00019726,2]
[376489884,1753995047715,-462.06,0.00019726,2]
[376489886,1753995047725,-460.0,0.00019726,2]
[376489888,1753995047734,-460.0,0.00019726,2]
[376489890,1753995047743,-460.0,0.00019726,2]
[376489892,1753995047753,-460.0,0.00019726,2]
[376489894,1753995047763,-460.0,0.00019726,2]
[376489896,1753995047772,-460.0,0.00019726,2]
[376489897,1753995047781,-460.0,0.00019726,2]
[376489899,1753995047791,-460.0,0.00019726,2]
[376489901,1753995047800,-460.0,0.00019726,2]
[376489903,1753995047810,-527.78,0.00019726,2]
[376489905,1753995047819,-460.0,0.00019726,2]
[376489907,1753995047828,-460.0,0.00019726,2]
[376489909,1753995047838,-460.0,0.00019726,2]
[376489911,1753995047847,-460.0,0.00019726,2]
[376489913,1753995047856,-460.0,0.00019726,2]
[376489915,1753995047865,-1986.4,0.00019726,2]
[376489917,1753995047875,-470.6,0.00019726,2]
[376489919,1753995047884,-460.0,0.00019726,2]
[376489921,1753995047893,-460.0,0.00019726,2]
[376489923,1753995047903,-460.0,0.00019726,2]
[376489925,1753995047912,-460.0,0.00019726,2]
[376489927,1753995047922,-521.30661504,0.00019726,2]
[376489929,1753995047931,-460.0,0.00019726,2]
[376489931,1753995047940,-460.0,0.00019726,2]
[376489933,1753995047950,-460.0,0.00019726,2]
[376489935,1753995047960,-460.0,0.00019726,2]
[376489937,1753995047969,-460.0,0.00019726,2]
[376489939,1753995047978,-460.0,0.00019726,2]
[376489941,1753995047988,-500.63,0.00019726,2]
[376489943,1753995047997,-508.6,0.00019726,2]
[376489945,1753995048006,-470.94341834,0.00019726,2]
[376489947,1753995048017,-639.05,0.00019726,2]
[376489948,1753995048026,-620.2,0.00019726,2]
[376489950,1753995048036,-460.0,0.00019726,2]
[376489952,1753995048046,-659.86,0.00019726,2]
[376489954,1753995048055,-460.0,0.00019726,2]
[376489956,1753995048065,-904.0,0.00019726,2]
[376489958,1753995048074,-640.02,0.00019726,2]
[376489960,1753995048084,-4031.87,0.00019726,2]
[376489963,1753995048094,-499.8,0.00019726,2]
[376489964,1753995048104,-460.0,0.00019726,2]
[376489966,1753995048114,-957.56,0.00019726,2]
[376489968,1753995048124,-460.0,0.00019726,2]
[376489971,1753995048134,-460.0,0.00019726,2]
[376489972,1753995048143,-760.85,0.00019726,2]
[376489974,1753995048153,-460.0,0.00019726,2]
[376489976,1753995048162,-792.01,0.00019726,2]
[376489978,1753995048171,-727.6,0.00019726,2]
[376489980,1753995048181,-626.8,0.00019726,2]
[376489982,1753995048190,-1781.17,0.00019726,2]
[376489984,1753995048201,-2682.25,0.00019726,2]
[376489986,1753995048210,-460.0,0.00019726,2]
[376489988,1753995048219,-532.13,0.00019726,2]
[376489990,1753995048229,-460.0,0.00019726,2]
[376489992,1753995048239,-1770.07,0.00019726,2]
[376489994,1753995048248,-460.0,0.00019726,2]
[376489996,1753995048258,-668.02,0.00019726,2]
[376489998,1753995048267,-838.67,0.00019726,2]
[376490000,1753995048276,-460.0,0.00019726,2]
[376490002,1753995048285,-2894.25,0.00019726,2]
[376490004,1753995048295,-1197.66,0.00019726,2]
[376490006,1753995048304,-595.83,0.00019726,2]
[376490008,1753995048313,-460.0,0.00019726,2]
[376490010,1753995048322,-2276.82,0.00019726,2]
[376490012,1753995048331,-2004.29,0.00019726,2]
[376490014,1753995048340,-460.0,0.00019726,2]
[376490016,1753995048350,-470.04277063,0.00019726,2]
[376490018,1753995048359,-264.75515117,0.00019726,2]
[376490020,1753995048368,-417.54460392,0.00019726,2]